fUSD/lending_fUSD_20260218
["ID","MTS","AMOUNT","RATE_DAILY","PERIOD"]
[405931729,1771421450763,-25949.63612918,0.00016755,2]
[405931730,1771421450772,-60136.73424219,0.00016789,2]
[405931731,1771421450783,-482.75960727,0.00016811,2]
[405931732,1771421450792,-277.35679052,0.00016885,2]
[405931733,1771421450802,-2556.33728001,0.000169,4]
[405931734,1771421450811,-1000.0,0.00016986,2]
[405931735,1771421450822,-507.0,0.00016991,2]
[405931736,1771421450831,-300.0,0.00017,2]
[405931737,1771421450841,-556832.19380995,0.00017,2]
[405931738,1771421451020,-983.46842888,0.00017,2]
[405931739,1771421451201,-648.55553536,8.219e-05,2]
[405931740,1771421451211,-458358.58116252,0.00017,2]
[405931741,1771421451221,-3500.0,0.00017015,2]
[405931742,1771421451230,-160.0,0.0001704,2]
[405931743,1771421451240,-1000.0,0.0001726,2]
[405931744,1771421451250,-60136.73424219,0.00017344,2]
[405931745,1771421451260,-267.79,0.00017374,2]
[405931746,1771421451270,-1275.0,0.00017374,2]
[405931747,1771421451279,-1219.539,0.00017374,2]
[405931748,1771421451289,-162.74,0.00017374,2]
[405931749,1771421451299,-3534.442,0.00017374,2]
[405931750,1771421451309,-638.503,0.00017374,2]
[405931751,1771421451318,-287.61899177,0.00017433,2]
[405931752,1771421451328,-650.14,0.00017533,2]
[405931753,1771421451338,-650.14,0.00017533,2]
[405931754,1771421451347,-650.14,0.00017533,2]
[405931755,1771421451357,-650.14,0.00017533,2]
[405931756,1771421451367,-650.26047002,0.00017533,2]
[405931757,1771421451378,-1223.27,0.00017533,2]
[405931758,1771421451387,-1223.27,0.00017533,2]
[405931759,1771421451397,-1223.27,0.00017533,2]
[405931760,1771421451406,-1223.27,0.00017533,2]
[405931761,1771421451415,-1223.4953454,0.00017533,2]
[405931762,1771421451425,-1473.0,0.00017534,2]
[405931763,1771421451434,-4000.0,0.00017563,2]
[405931764,1771421451444,-2836.0,0.0001768,2]
[405931765,1771421451453,-2836.0,0.0001768,2]
[405931766,1771421451463,-784.44122355,0.000177,2]
[405931767,1771421451472,-403.0,0.000177,5]
[405931768,1771421451482,-800.0,0.00017808,2]
[405931769,1771421451491,-250.0,0.00017808,20]
[405931770,1771421451501,-250.0,0.00017808,20]
[405931771,1771421451511,-250.0,0.00017808,20]
[405931772,1771421451521,-250.0,0.00017808,20]
[405931773,1771421451530,-250.0,0.00017808,20]
[405931774,1771421451540,-250.0,0.00017808,20]
[405931775,1771421451550,-250.0,0.00017808,20]
[405931776,1771421451559,-175.581631,0.00017808,20]
[405931777,1771421451569,-1004.26991434,0.0001786,2]
[405931778,1771421451579,-976.2,0.00017899,2]
[405931779,1771421451589,-500.0,0.00017899,2]
[405931780,1771421451599,-500.0,0.00017899,2]
[405931781,1771421451609,-1047.82,0.00017899,2]
[405931782,1771421451621,-608.53,0.00017899,2]
[405931783,1771421451631,-1179.65,0.00017899,2]
[405931784,1771421451640,-60136.73424219,0.000179,2]
[405931785,1771421451650,-2887.40769395,0.000179,2]
[405931786,1771421451661,-25635.78322112,0.000179,2]
[405931787,1771421451670,-170.40667766,0.000179,2]
[405931788,1771421451680,-470.07434364,0.000179,2]
[405931789,1771421451691,-500.0,0.0001797,2]
[405931790,1771421451701,-500.0,0.0001797,2]
[405931791,1771421451710,-1000.0,0.0001797,2]
[405931792,1771421451720,-1000.0,0.0001797,2]
[405931793,1771421451730,-500.0,0.0001797,2]
[405931794,1771421451739,-1000.0,0.0001797,2]
[405931795,1771421451748,-900.0,0.0001797,2]
[405931796,1771421451758,-113.62275333,0.0001797,2]
[405931797,1771421451774,-886.37724667,0.0001797,2]
[405931798,1771421451783,-907.32275332,0.0001797,2]
[405931799,1771421451835,-922.54782344,0.00013,2]
[405931809,1771422631982,-250.0,7.485e-05,2]
[405931810,1771422631993,-43.06865652,7.489e-05,2]
[405931811,1771422632004,-106.93134348,7.489e-05,2]
[405931812,1771422632015,-150.0,7.515e-05,2]
[405931813,1771422632025,-1200.0,7.515e-05,2]
[405931814,1771422632034,-42553.85015652,7.516e-05,2]
[405931815,1771422632045,-581.23546982,7.516e-05,2]
[405931836,1771422638034,-655.5,7.516e-05,2]
[405931837,1771422638092,-1917.13880781,7.516e-05,2]
[405932014,1771422640414,-16451.6527407,7.516e-05,2]
[405932015,1771422640427,-4674.1142066,7.516e-05,2]
[405932016,1771422640439,-1184.52,7.516e-05,2]
[405932017,1771422640474,-3431981.98861855,7.516e-05,2]
[405932018,1771422640484,-500.0,7.608e-05,2]
[405932019,1771422640494,-313.38289578,7.608e-05,2]
[405932020,1771422640504,-1924.93846265,7.608e-05,2]
[405932021,1771422640514,-300.0,7.615e-05,2]
[405932022,1771422640524,-32222.0,7.616e-05,2]
[405932023,1771422640534,-1063.60277353,7.635e-05,2]
[405932024,1771422640545,-820.17174,8.178e-05,2]
[405932025,1771422640554,-453.98887475,8.219e-05,2]
[405932026,1771422640564,-5000.0,8.231e-05,2]
[405932027,1771422640574,-5000.0,8.231e-05,2]
[405932028,1771422640584,-5000.0,8.231e-05,2]
[405932030,1771422640594,-5000.0,8.231e-05,2]
[405932031,1771422640603,-5000.0,8.231e-05,2]
[405932032,1771422640613,-250.0,8.231e-05,2]
[405932033,1771422640622,-250.0,8.231e-05,2]
[405932034,1771422640631,-255.0,8.267e-05,2]
[405932035,1771422640640,-1680.0,8.267e-05,2]
[405932036,1771422640655,-245.86778969,8.367e-05,2]
[405932037,1771422640666,-500.0,8.367e-05,2]
[405932038,1771422640676,-500.0,8.367e-05,2]
[405932039,1771422640686,-307.32831336,8.367e-05,2]
[405932040,1771422640696,-500.0,8.367e-05,2]
[405932041,1771422640706,-500.0,8.367e-05,2]
[405932042,1771422640716,-500.0,8.367e-05,2]
[405932043,1771422640726,-500.0,8.367e-05,2]
[405932044,1771422640737,-500.0,8.367e-05,2]
[405932045,1771422640747,-500.0,8.367e-05,2]
[405932046,1771422640756,-500.92647612,8.367e-05,2]
[405932047,1771422640766,-500.0,8.367e-05,2]
[405932048,1771422640776,-167.33946284,8.367e-05,2]
[405932049,1771422640786,-306.32454784,8.367e-05,2]
[405932050,1771422640796,-500.0,8.367e-05,2]
[405932051,1771422640806,-500.0,8.367e-05,2]
[405932052,1771422640816,-420.0,8.377e-05,2]
[405932053,1771422640826,-600.0,8.428e-05,2]
[405932054,1771422640836,-500.0,8.804e-05,2]
[405932055,1771422640846,-82361.14,8.849e-05,2]
[405932056,1771422640856,-166.66,8.894e-05,2]
[405932057,1771422640865,-1000.0,8.915e-05,2]
[405932058,1771422640875,-1000.0,8.915e-05,2]
[405932059,1771422640885,-1000.0,8.915e-05,2]
[405932060,1771422640896,-1000.0,8.915e-05,2]
[405932061,1771422640906,-341.49183462,8.915e-05,2]
[405932062,1771422640916,-1000.0,8.915e-05,2]
[405932063,1771422640925,-1000.0,8.915e-05,2]
[405932064,1771422640936,-500.0,9.094e-05,2]
[405932065,1771422640945,-433.0,9.094e-05,2]
[405932066,1771422640956,-2351.0,9.094e-05,2]
[405932067,1771422640967,-166.66,9.188e-05,2]
[405932068,1771422640979,-587.0,9.215e-05,2]
[405932069,1771422640988,-500.0,9.368e-05,2]
[405932070,1771422640998,-1500.0,9.463e-05,2]
[405932071,1771422641008,-1500.0,9.463e-05,2]
[405932072,1771422641019,-1500.0,9.463e-05,2]
[405932073,1771422641029,-512.75173509,9.463e-05,2]
[405932074,1771422641038,-1509.709324,9.463e-05,2]
[405932075,1771422641050,-166.66,9.481e-05,2]
[405932076,1771422641059,-166.66,9.775e-05,2]
[405932077,1771422641070,-327.34,9.947e-05,2]
[405932078,1771422641080,-553.95,0.0001,2]
[405932079,1771422641090,-151.0,0.0001,2]
[405932080,1771422641099,-151.0,0.0001,2]
[405932081,1771422641109,-151.0,0.0001,2]
[405932082,1771422641119,-151.0,0.0001,2]
[405932083,1771422641128,-151.0,0.0001,2]
[405932084,1771422641138,-151.0,0.0001,2]
[405932085,1771422641148,-151.0,0.0001,2]
[405932086,1771422641158,-151.0,0.0001,2]
[405932087,1771422641168,-151.0,0.0001,2]
[405932088,1771422641178,-151.0,0.0001,2]
[405932089,1771422641190,-151.0,0.0001,2]
[405932090,1771422641199,-151.0,0.0001,2]
[405932091,1771422641209,-151.0,0.0001,2]
[405932092,1771422641219,-151.0,0.0001,2]
[405932093,1771422641229,-151.0,0.0001,2]
[405932094,1771422641238,-151.0,0.0001,2]
[405932095,1771422641248,-151.0,0.0001,2]
[405932096,1771422641258,-151.0,0.0001,2]
[405932097,1771422641268,-151.0,0.0001,2]
[405932098,1771422641277,-151.0,0.0001,2]
[405932099,1771422641287,-151.0,0.0001,2]
[405932100,1771422641296,-151.0,0.0001,2]
[405932101,1771422641306,-151.0,0.0001,2]
[405932102,1771422641315,-151.0,0.0001,2]
[405932103,1771422641324,-151.0,0.0001,2]
[405932104,1771422641333,-151.0,0.0001,2]
[405932105,1771422641343,-151.0,0.0001,2]
[405932106,1771422641352,-151.0,0.0001,2]
[405932107,1771422641362,-151.0,0.0001,2]
[405932108,1771422641371,-151.0,0.0001,2]
[405932109,1771422641380,-151.0,0.0001,2]
[405932110,1771422641390,-151.0,0.0001,2]
[405932111,1771422641398,-151.0,0.0001,2]
[405932112,1771422641407,-151.0,0.0001,2]
[405932113,1771422641417,-151.0,0.0001,2]
[405932114,1771422641427,-151.0,0.0001,2]
[405932115,1771422641438,-151.0,0.0001,2]
[405932116,1771422641449,-151.0,0.0001,2]
[405932117,1771422641460,-151.0,0.0001,2]
[405932118,1771422641470,-151.0,0.0001,2]
[405932119,1771422641479,-175.27847489,0.0001,2]
[405932120,1771422641495,-1889.54156641,0.0001,2]
[405932121,1771422641507,-1889.54156641,0.0001,2]
[405932122,1771422641517,-736.0,0.00010003,2]
[405932123,1771422641526,-3292.0,0.00010003,2]
[405932124,1771422641536,-2000.0,0.00010011,2]
[405932125,1771422641545,-1460.671579,0.00010011,2]
[405932126,1771422641555,-1865.39566179,0.00010011,2]
[405932127,1771422641565,-170.44202008,0.00010053,2]
[405932128,1771422641575,-166.66,0.00010069,2]
[405932129,1771422641585,-6626.46,0.00010117,2]
[405932130,1771422641596,-1719.89929449,0.00010129,2]
[405932131,1771422641606,-823.0,0.00010136,2]
[405932132,1771422641617,-553.95,0.00010274,2]
[405932133,1771422641628,-166.66,0.00010362,2]
[405932134,1771422641641,-150.99,0.00010475,2]
[405932135,1771422641651,-9999.99,0.00010475,2]
[405932136,1771422641660,-327.34,0.000105,2]
[405932137,1771422641670,-553.95,0.00010548,2]
[405932138,1771422641680,-2500.0,0.00010559,2]
[405932139,1771422641690,-553.95,0.00010822,2]
[405932140,1771422641700,-2336.82710072,0.000109,2]
[405932141,1771422641709,-2336.82710072,0.000109,2]
[405932142,1771422641719,-2336.82710072,0.000109,2]
[405932143,1771422641728,-1744.0224,0.00010999,2]
[405932144,1771422641738,-32853.2111,0.00010999,2]
[405932145,1771422641749,-1000.0,0.00010999,2]
[405932146,1771422641759,-2500.0,0.00010999,2]
[405932147,1771422641768,-893.0,0.00011003,2]
[405932148,1771422641778,-2086.0,0.00011003,2]
[405932149,1771422641787,-327.34,0.00011053,2]
[405932150,1771422641799,-553.95,0.00011096,2]
[405932151,1771422641808,-48109.38739378,0.00011099,2]
[405932152,1771422641818,-48109.38739375,0.00011099,2]
[405932153,1771422641828,-48109.38739375,0.00011099,2]
[405932154,1771422641838,-48109.38739375,0.00011099,2]
[405932155,1771422641847,-48109.38739375,0.00011099,2]
[405932156,1771422641857,-48109.38739375,0.00011099,2]
[405932157,1771422641867,-66973.70088075,0.00011099,2]
[405932158,1771422641876,-3000.0,0.00011107,2]
[405932159,1771422641886,-1152.0,0.0001115,2]
[405932160,1771422641896,-9565.84,0.00011233,2]
[405932161,1771422641908,-554.00615053,0.0001137,2]
[405932162,1771422641918,-333.11,0.00011418,2]
[405932163,1771422641927,-327.34,0.00011605,2]
[405932164,1771422641937,-508.25195844,0.00011655,2]
[405932165,1771422641948,-66973.70088072,0.00011766,2]
[405932166,1771422641957,-48109.38739375,0.00011803,2]
[405932167,1771422641967,-327.34,0.00012158,2]
[405932168,1771422641980,-1613.0,0.00012265,2]
[405932169,1771422641990,-48109.38739375,0.00012518,2]
[405932170,1771422642000,-66973.70088072,0.00012533,2]
[405932171,1771422642009,-313.38289576,0.00012704,2]
[405932172,1771422642022,-1924.93846263,0.00012704,2]
[405932173,1771422642031,-327.34,0.0001271,2]
[405932174,1771422642041,-500.0,0.00013,2]
[405932175,1771422642051,-500.0,0.00013,2]
[405932176,1771422642061,-500.0,0.00013,2]
[405932177,1771422642071,-500.0,0.00013,2]
[405932178,1771422642081,-500.0,0.00013,2]
[405932179,1771422642091,-500.0,0.00013,2]
[405932180,1771422642100,-500.0,0.00013,2]
[405932181,1771422642110,-500.0,0.00013,2]
[405932182,1771422642120,-500.0,0.00013,2]
[405932183,1771422642129,-500.0,0.00013,2]
[405932184,1771422642139,-500.0,0.00013,2]
[405932185,1771422642148,-934.97647106,0.00013,2]
[405932186,1771422642157,-500.0,0.00013,2]
[405932187,1771422642166,-500.0,0.00013,2]
[405932188,1771422642176,-3800.0,0.00013,2]
[405932189,1771422642186,-500.0,0.00013,2]
[405932190,1771422642196,-3800.0,0.00013,2]
[405932191,1771422642206,-500.0,0.00013,2]
[405932192,1771422642215,-3800.0,0.00013,2]
[405932193,1771422642224,-573.21497791,0.00013,2]
[405932194,1771422642234,-3800.0,0.00013,2]
[405932195,1771422642243,-500.0,0.00013,2]
[405932196,1771422642253,-3800.0,0.00013,2]
[405932197,1771422642262,-3800.0,0.00013,2]
[405932198,1771422642272,-500.0,0.00013,2]
[405932199,1771422642281,-2200.0,0.00013,2]
[405932200,1771422642291,-968.65142675,0.00013,2]
[405932201,1771422642300,-2200.0,0.00013,2]
[405932202,1771422642310,-3800.0,0.00013,2]
[405932203,1771422642320,-3800.0,0.00013,2]
[405932204,1771422642330,-2200.0,0.00013,2]
[405932205,1771422642340,-2200.0,0.00013,2]
[405932206,1771422642349,-3800.0,0.00013,2]
[405932207,1771422642359,-2200.0,0.00013,2]
[405932208,1771422642368,-3800.0,0.00013,2]
[405932209,1771422642378,-1600.0,0.00013,2]
[405932210,1771422642387,-3800.0,0.00013,2]
[405932211,1771422642397,-2200.0,0.00013,2]
[405932212,1771422642406,-1600.0,0.00013,2]
[405932213,1771422642415,-3800.0,0.00013,2]
[405932214,1771422642425,-2200.0,0.00013,2]
[405932215,1771422642434,-1600.0,0.00013,2]
[405932216,1771422642444,-3800.0,0.00013,2]
[405932217,1771422642454,-2200.0,0.00013,2]
[405932218,1771422642463,-1600.0,0.00013,2]
[405932219,1771422642473,-500.0,0.00013,2]
[405932220,1771422642482,-7435.2660652,0.00013,2]
[405932221,1771422642492,-2200.0,0.00013,2]
[405932222,1771422642502,-1600.0,0.00013,2]
[405932223,1771422642512,-500.0,0.00013,2]
[405932224,1771422642521,-1600.0,0.00013,2]
[405932225,1771422642531,-2200.0,0.00013,2]
[405932226,1771422642540,-1600.0,0.00013,2]
[405932227,1771422642550,-2200.0,0.00013,2]
[405932228,1771422642559,-1600.0,0.00013,2]
[405932229,1771422642569,-500.0,0.00013,2]
[405932230,1771422642578,-1600.0,0.00013,2]
[405932231,1771422642588,-500.0,0.00013,2]
[405932232,1771422642598,-500.0,0.00013,2]
[405932233,1771422642607,-1600.0,0.00013,2]
[405932234,1771422642617,-500.0,0.00013,2]
[405932235,1771422642626,-7500.0,0.00013,2]
[405932236,1771422642636,-500.0,0.00013,2]
[405932237,1771422642646,-500.0,0.00013,2]
[405932238,1771422642656,-1600.0,0.00013,2]
[405932239,1771422642666,-500.0,0.00013,2]
[405932240,1771422642676,-7500.0,0.00013,2]
[405932241,1771422642685,-500.0,0.00013,2]
[405932242,1771422642695,-1600.0,0.00013,2]
[405932243,1771422642706,-500.0,0.00013,2]
[405932244,1771422642715,-7500.0,0.00013,2]
[405932245,1771422642724,-1600.0,0.00013,2]
[405932246,1771422642734,-500.0,0.00013,2]
[405932247,1771422642744,-500.0,0.00013,2]
[405932250,1771422642754,-500.0,0.00013,2]
[405932251,1771422642763,-7500.0,0.00013,2]
[405932252,1771422642773,-3124.06174558,0.00013,2]
[405932253,1771422642782,-500.0,0.00013,2]
[405932254,1771422642792,-500.0,0.00013,2]
[405932255,1771422642801,-7500.0,0.00013,2]
[405932256,1771422642811,-500.0,0.00013,2]
[405932257,1771422642820,-500.0,0.00013,2]
[405932258,1771422642830,-7500.0,0.00013,2]
[405932259,1771422642840,-747.20350337,0.00013,2]
[405932260,1771422642849,-7500.0,0.00013,2]
[405932262,1771422642859,-7500.0,0.00013,2]
[405932263,1771422642868,-700.0,0.00013,2]
[405932265,1771422642877,-7500.0,0.00013,2]
[405932267,1771422642887,-700.0,0.00013,2]
[405932268,1771422642896,-1500.0,0.00013,2]
[405932269,1771422642905,-7500.0,0.00013,2]
[405932270,1771422642916,-700.0,0.00013,2]
[405932271,1771422642926,-1500.0,0.00013,2]
[405932272,1771422642935,-1000.0,0.00013,2]
[405932273,1771422642945,-7500.0,0.00013,2]
[405932274,1771422642954,-700.0,0.00013,2]
[405932275,1771422642963,-1500.0,0.00013,2]
[405932276,1771422642974,-1000.0,0.00013,2]
[405932277,1771422642986,-7500.0,0.00013,2]
[405932278,1771422642996,-700.0,0.00013,2]
[405932279,1771422643005,-1500.0,0.00013,2]
[405932280,1771422643016,-1000.0,0.00013,2]
[405932281,1771422643026,-600.0,0.00013,2]
[405932282,1771422643035,-1500.0,0.00013,2]
[405932283,1771422643044,-1000.0,0.00013,2]
[405932284,1771422643055,-600.0,0.00013,2]
[405932285,1771422643064,-7500.0,0.00013,2]
[405932286,1771422643074,-700.0,0.00013,2]
[405932287,1771422643083,-1500.0,0.00013,2]
[405932288,1771422643092,-1000.0,0.00013,2]
[405932289,1771422643102,-600.0,0.00013,2]
[405932290,1771422643112,-12889.52622024,0.00013,2]
[405932291,1771422643123,-700.0,0.00013,2]
[405932292,1771422643478,-1500.0,0.00013,2]
[405932293,1771422643489,-1000.0,0.00013,2]
[405932294,1771422643498,-600.0,0.00013,2]
[405932295,1771422643510,-700.0,0.00013,2]
[405932296,1771422643529,-1500.0,0.00013,2]
[405932297,1771422643538,-1000.0,0.00013,2]
[405932298,1771422643547,-700.0,0.00013,2]
[405932299,1771422643556,-600.0,0.00013,2]
[405932300,1771422643566,-1500.0,0.00013,2]
[405932301,1771422643575,-1000.0,0.00013,2]
[405932302,1771422643585,-700.0,0.00013,2]
[405932303,1771422643594,-600.0,0.00013,2]
[405932304,1771422643604,-1500.0,0.00013,2]
[405932305,1771422643613,-1000.0,0.00013,2]
[405932306,1771422643622,-700.0,0.00013,2]
[405932307,1771422643631,-600.0,0.00013,2]
[405932308,1771422643642,-1500.0,0.00013,2]
[405932309,1771422643652,-1000.0,0.00013,2]
[405932310,1771422643663,-700.0,0.00013,2]
[405932311,1771422643672,-600.0,0.00013,2]
[405932312,1771422643682,-2000.0,0.00013,2]
[405932313,1771422643692,-1500.0,0.00013,2]
[405932314,1771422643702,-1000.0,0.00013,2]
[405932315,1771422643711,-600.0,0.00013,2]
[405932316,1771422643720,-1500.0,0.00013,2]
[405932317,1771422643730,-2000.0,0.00013,2]
[405932319,1771422643739,-700.0,0.00013,2]
[405932321,1771422643748,-600.0,0.00013,2]
[405932323,1771422643758,-1000.0,0.00013,2]
[405932325,1771422643767,-1964.18790327,0.00013,2]
[405932327,1771422643776,-2000.0,0.00013,2]
[405932329,1771422643785,-915.86560284,0.00013,2]
[405932332,1771422643794,-600.0,0.00013,2]
[405932334,1771422643803,-1000.0,0.00013,2]
[405932337,1771422643813,-2000.0,0.00013,2]
[405932340,1771422643823,-987.835627,0.00013,2]
[405932345,1771422643833,-2000.0,0.00013,2]
[405932346,1771422643842,-1448.41237158,0.00013,2]
[405932348,1771422643851,-2000.0,0.00013,2]
[405932350,1771422643861,-2000.0,0.00013,2]
[405932352,1771422643870,-2000.0,0.00013,2]
[405932354,1771422643880,-2000.0,0.00013,2]
[405932357,1771422643889,-2000.0,0.00013,2]
[405932360,1771422643899,-2000.0,0.00013,2]
[405932362,1771422643908,-2000.0,0.00013,2]
[405932364,1771422643917,-2000.0,0.00013,2]
[405932366,1771422643927,-3214.86272581,0.00013,2]
[405932368,1771422643936,-500.0,0.00013,2]
[405932370,1771422643945,-500.0,0.00013,2]
[405932371,1771422643955,-500.0,0.00013,2]
[405932372,1771422643965,-500.0,0.00013,2]
[405932373,1771422643978,-500.0,0.00013,2]
[405932374,1771422643987,-627.4356947,0.00013,2]
[405932375,1771422643996,-500.0,0.00013,2]
[405932376,1771422644006,-2300.0,0.00013,2]
[405932377,1771422644016,-2300.0,0.00013,2]
[405932378,1771422644026,-2300.0,0.00013,2]
[405932379,1771422644036,-500.0,0.00013,2]
[405932380,1771422644045,-2300.0,0.00013,2]
[405932381,1771422644056,-500.0,0.00013,2]
[405932382,1771422644065,-2300.0,0.00013,2]
[405932383,1771422644075,-2300.0,0.00013,2]
[405932384,1771422644084,-2300.0,0.00013,2]
[405932385,1771422644094,-2300.0,0.00013,2]
[405932386,1771422644104,-2300.0,0.00013,2]
[405932387,1771422644113,-2300.0,0.00013,2]
[405932388,1771422644123,-2300.0,0.00013,2]
[405932389,1771422644132,-2300.0,0.00013,2]
[405932390,1771422644142,-2300.0,0.00013,2]
[405932391,1771422644151,-4519.04265769,0.00013,2]
[405932392,1771422644160,-500.0,0.00013,2]
[405932393,1771422644170,-500.0,0.00013,2]
[405932394,1771422644179,-500.0,0.00013,2]
[405932395,1771422644189,-500.0,0.00013,2]
[405932396,1771422644199,-500.0,0.00013,2]
[405932397,1771422644208,-576.38877633,0.00013,2]
[405932398,1771422644217,-48109.38739375,0.00013234,2]
[405932399,1771422644227,-327.34,0.00013263,2]
[405932400,1771422644236,-66973.70088072,0.00013299,2]
[405932401,1771422644245,-3240.0,0.00013425,2]
[405932402,1771422644255,-629.0,0.00013491,2]
[405932403,1771422644264,-4588.3903,0.00013598,2]
[405932404,1771422644273,-10000.0,0.00013598,2]
[405932405,1771422644282,-500.0,0.00013698,2]
[405932406,1771422644291,-500.0,0.00013698,2]
[405932407,1771422644300,-500.0,0.00013698,2]
[405932408,1771422644309,-500.0,0.00013698,2]
[405932409,1771422644317,-500.0,0.00013698,2]
[405932410,1771422644326,-500.0,0.00013698,2]
[405932411,1771422644335,-500.0,0.00013698,2]
[405932412,1771422644347,-500.0,0.00013698,2]
[405932413,1771422644356,-500.0,0.00013698,2]
[405932414,1771422644365,-500.0,0.00013698,2]
[405932415,1771422644374,-500.0,0.00013698,2]
[405932416,1771422644383,-500.0,0.00013698,2]
[405932417,1771422644392,-500.0,0.00013698,2]
[405932418,1771422644401,-500.0,0.00013698,2]
[405932419,1771422644410,-500.0,0.00013698,2]
[405932420,1771422644420,-500.0,0.00013698,2]
[405932421,1771422644430,-500.0,0.00013698,2]
[405932422,1771422644440,-500.0,0.00013698,2]
[405932423,1771422644450,-500.0,0.00013698,2]
[405932424,1771422644459,-500.0,0.00013698,2]
[405932425,1771422644468,-500.0,0.00013698,2]
[405932426,1771422644478,-500.0,0.00013698,2]
[405932427,1771422644487,-500.0,0.00013698,2]
[405932428,1771422644497,-500.0,0.00013698,2]
[405932429,1771422644506,-500.0,0.00013698,2]
[405932430,1771422644515,-500.0,0.00013698,2]
[405932431,1771422644525,-500.0,0.00013698,2]
[405932432,1771422644534,-500.0,0.00013698,2]
[405932433,1771422644543,-500.0,0.00013698,2]
[405932434,1771422644552,-500.0,0.00013698,2]
[405932435,1771422644562,-500.0,0.00013698,2]
[405932436,1771422644571,-500.0,0.00013698,2]
[405932437,1771422644584,-500.0,0.00013698,2]
[405932438,1771422644593,-500.0,0.00013698,2]
[405932439,1771422644603,-500.0,0.00013698,2]
[405932440,1771422644611,-500.0,0.00013698,2]
[405932441,1771422644621,-500.0,0.00013698,2]
[405932442,1771422644630,-500.0,0.00013698,2]
[405932443,1771422644640,-500.0,0.00013698,2]
[405932444,1771422644649,-1406.97,0.00013698,2]
[405932445,1771422644659,-1406.97,0.00013698,2]
[405932446,1771422644668,-1406.97,0.00013698,2]
[405932447,1771422644677,-1406.97,0.00013698,2]
[405932448,1771422644686,-1406.97,0.00013698,2]
[405932449,1771422644698,-1406.97,0.00013698,2]
[405932450,1771422644707,-1406.97,0.00013698,2]
[405932451,1771422644716,-1406.97,0.00013698,2]
[405932452,1771422644726,-1406.97,0.00013698,2]
[405932453,1771422644735,-1406.97,0.00013698,2]
[405932454,1771422644745,-1406.97,0.00013698,2]
[405932455,1771422644755,-1406.97,0.00013698,2]
[405932456,1771422644765,-1406.97,0.00013698,2]
[405932457,1771422644774,-1406.97,0.00013698,2]
[405932458,1771422644784,-1406.97,0.00013698,2]
[405932459,1771422644793,-1406.97,0.00013698,2]
[405932460,1771422644802,-1406.97,0.00013698,2]
[405932461,1771422644811,-1406.97,0.00013698,2]
[405932462,1771422644821,-500.0,0.00013698,2]
[405932463,1771422644830,-500.0,0.00013698,2]
[405932464,1771422644839,-611.22,0.00013698,2]
[405932465,1771422644848,-611.22,0.00013698,2]
[405932466,1771422644858,-611.22,0.00013698,2]
[405932467,1771422644867,-611.22,0.00013698,2]
[405932468,1771422644876,-611.22,0.00013698,2]
[405932469,1771422644885,-611.22,0.00013698,2]